fUSD/lending_fUSD_20240426
["ID","MTS","AMOUNT","RATE_DAILY","PERIOD"]
[323625519,1714143074912,-5800.0,0.00012861,2]
[323625520,1714143074929,-150.0,0.00012862,2]
[323625521,1714143074935,-150.0,0.00012863,2]
[323625522,1714143074943,-150.0,0.00012864,2]
[323625523,1714143074953,-150.0,0.00012864,2]
[323625524,1714143074962,-150.0,0.00012867,2]
[323625525,1714143074971,-5800.0,0.0001287,2]
[323625526,1714143074981,-150.0,0.00012877,2]
[323625527,1714143074990,-5800.0,0.00012878,2]
[323625528,1714143075002,-17311.19786046,0.0001288,2]
[323625529,1714143075011,-25455.10848674,0.0001288,2]
[323625530,1714143075021,-2348.0,0.00012881,2]
[323625531,1714143075029,-5800.0,0.00012886,2]
[323625532,1714143075038,-373.5186495,0.00012891,2]
[323625533,1714143075048,-277.6085959,0.00012891,2]
[323625534,1714143075057,-150.0,0.00012892,2]
[323625535,1714143075067,-5800.0,0.00012895,2]
[323625536,1714143075077,-150.0,0.00012898,2]
[323625537,1714143075086,-9669.8274602,0.00012899,3]
[323625538,1714143075097,-1000000.0,0.000129,2]
[323625539,1714143075107,-2228.90607846,0.000129,2]
[323625540,1714143075116,-14799.42193898,0.000129,2]
[323625541,1714143075125,-150.0,0.000129,2]
[323625542,1714143075135,-700.0,0.000129,4]
[323625543,1714143075145,-18111.2122991,0.000129,2]
[323625544,1714143075156,-1142.8469793,0.000129,2]
[323625545,1714143075165,-334.3355904,0.00012901,2]
[323625546,1714143075175,-246.9587845,0.00012901,2]
[323625547,1714143075184,-16117.6428707,0.00012901,2]
[323625548,1714143075194,-1000000.0,0.0001291,2]
[323625549,1714143075204,-1000000.0,0.0001292,2]
[323625550,1714143075213,-387.55401911,0.00012929,2]
[323625551,1714143075226,-216.4384571,0.00012953,2]
[323625552,1714143075235,-500.0,0.00012953,2]
[323625553,1714143075244,-500.0,0.00012953,2]
[323625554,1714143075256,-219.23171407,0.00012953,2]
[323625555,1714143075266,-405.08045534,0.00012953,2]
[323625556,1714143075275,-1500.0,0.00012962,2]
[323625557,1714143075284,-565.97,0.00012963,2]
[323625558,1714143075294,-931.37,0.00012963,2]
[323625559,1714143075304,-882.3,0.00012963,2]
[323625560,1714143075315,-500.0,0.00012963,2]
[323625561,1714143075324,-500.0,0.00012963,2]
[323625562,1714143075333,-500.0,0.00012963,2]
[323625563,1714143075342,-556.07,0.00012963,2]
[323625564,1714143075351,-547.59,0.00012963,2]
[323625565,1714143075359,-500.0,0.00012963,2]
[323625566,1714143075367,-500.0,0.00012963,2]
[323625567,1714143075375,-503.70987826,0.00012963,2]
[323625568,1714143075385,-500.0,0.00012963,2]
[323625569,1714143075395,-500.0,0.00012963,2]
[323625570,1714143075406,-500.0,0.00012963,2]
[323625571,1714143075415,-500.0,0.00012963,2]
[323625572,1714143075424,-777.88,0.00012963,2]
[323625573,1714143075440,-500.0,0.00012963,2]
[323625574,1714143075449,-500.0,0.00012963,2]
[323625575,1714143075474,-500.0,0.00012963,2]
[323625576,1714143075497,-1047.45,0.00012963,2]
[323625577,1714143075526,-794.44,0.00012963,2]
[323625578,1714143075544,-627.1,0.00012963,2]
[323625579,1714143075559,-276.18826912,0.00012963,2]
[323625580,1714143075578,-919.78,0.00012963,2]
[323625581,1714143075587,-806.04,0.00012963,2]
[323625582,1714143075597,-500.0,0.00012963,2]
[323625583,1714143075606,-504.8347063,0.00012963,2]
[323625584,1714143075626,-500.0,0.00012963,2]
[323625585,1714143075636,-500.0,0.00012963,2]
[323625586,1714143075646,-694.55,0.00012963,2]
[323625587,1714143075655,-732.31,0.00012963,2]
[323625588,1714143075664,-500.0,0.00012963,2]
[323625589,1714143075673,-684.0,0.00012963,2]
[323625590,1714143075686,-525.16,0.00012963,2]
[323625591,1714143075695,-583.92,0.00012963,2]
[323625592,1714143075705,-500.0,0.00012963,2]
[323625593,1714143075847,-984.02,0.00012963,2]
[323625594,1714143075872,-1020.45,0.00012963,2]
[323625595,1714143075882,-500.0,0.00012963,2]
[323625596,1714143075892,-500.0,0.00012963,2]
[323625597,1714143075902,-716.55,0.00012963,2]
[323625598,1714143075911,-500.0,0.00012963,2]
[323625599,1714143075921,-696.67,0.00012963,2]
[323625600,1714143075930,-500.0,0.00012963,2]
[323625601,1714143075940,-270.14890186,0.00012963,2]
[323625602,1714143075950,-500.0,0.00012963,2]
[323625603,1714143075960,-525.86,0.00012963,2]
[323625604,1714143075970,-500.0,0.00012963,2]
[323625605,1714143075979,-500.0,0.00012963,2]
[323625606,1714143075988,-500.0,0.00012963,2]
[323625607,1714143075998,-503.9689907,0.00012963,2]
[323625608,1714143076010,-500.0,0.00012963,2]
[323625609,1714143076019,-768.71,0.00012963,2]
[323625610,1714143076028,-700.0,0.0001297,2]
[323625611,1714143076037,-700.0,0.0001297,2]
[323625612,1714143076047,-700.0,0.0001297,2]
[323625613,1714143076057,-700.0,0.0001297,2]
[323625614,1714143076066,-1300.0,0.0001297,2]
[323625615,1714143076076,-2340.64076,0.0001297,2]
[323625616,1714143076085,-263.80842009,0.00012985,2]
[323625617,1714143076094,-155.44164521,0.00012985,2]
[323625618,1714143076104,-190.59316463,0.00012986,2]
[323625619,1714143076113,-64217.8120843,0.00012986,2]
[323625620,1714143076122,-220.0,0.0001299,2]
[323625621,1714143076132,-210.0,0.0001299,2]
[323625622,1714143076142,-215.0,0.0001299,2]
[323625623,1714143076151,-220.0,0.0001299,2]
[323625624,1714143076160,-217.0,0.0001299,2]
[323625625,1714143076170,-157.041619,0.00012994,2]
[323625626,1714143076179,-157.041619,0.00012994,2]
[323625627,1714143076189,-157.041619,0.00012994,2]
[323625628,1714143076198,-199.041616,0.00012995,2]
[323625629,1714143076207,-199.041616,0.00012995,2]
[323625630,1714143076220,-157.041619,0.00012995,2]
[323625631,1714143076229,-152.12314302,0.00012995,2]
[323625632,1714143076239,-155.15831994,0.00012996,2]
[323625633,1714143076248,-196.27446182,0.00012996,2]
[323625634,1714143076260,-159.71747861,0.00012996,2]
[323625635,1714143076269,-155.5976372,0.00012996,2]
[323625636,1714143076279,-155.50725479,0.00012996,2]
[323625637,1714143076290,-155.90926844,0.00012996,2]
[323625638,1714143076300,-309.70806718,0.00012996,2]
[323625639,1714143076309,-158.60896997,0.00012996,2]
[323625640,1714143076319,-271.30286894,0.00012996,2]
[323625641,1714143076329,-19130.78606267,0.00012998,2]
[323625642,1714143076732,-265.760515,0.00012998,2]
[323625643,1714143076786,-1445.04,0.00012199,2]
[323625644,1714143076797,-500.0,0.00012473,2]
[323625645,1714143076806,-1163.40332456,0.00012998,2]
[323625646,1714143076818,-526.262,0.00012998,2]
[323625647,1714143077625,-241.42487898,0.00011649,2]
[323625648,1714143077642,-500.0,0.00011651,2]
[323625649,1714143077674,-500.0,0.00011651,2]
[323625650,1714143077691,-41.77640102,0.00011925,2]
[323625651,1714143077708,-458.22359898,0.00011925,2]
[323625652,1714143077737,-216.98873902,0.00011925,2]
[323625653,1714143077776,-283.01126098,0.00011925,2]
[323625654,1714143077785,-500.0,0.00012199,2]
[323625655,1714143077795,-1445.04,0.00012473,2]
[323625656,1714143077804,-281.98682565,0.00012473,2]
[323625657,1714143077814,-683.39,0.00012475,2]
[323625658,1714143077824,-500.0,0.00012747,2]
[323625659,1714143077833,-1445.04,0.00012747,2]
[323625660,1714143077843,-683.39,0.00012749,2]
[323625661,1714143077852,-39694.74204516,0.00012998,2]
[323625662,1714143077862,-15038.24803931,0.00012999,2]
[323625663,1714143077871,-262528.50832252,0.00013,2]
[323625664,1714143078441,-2054.35451881,0.0001165,2]
[323625665,1714143078503,-509.38278837,0.00011648,2]
[323625666,1714143078513,-297.29380107,0.0001165,2]
[323625667,1714143078524,-1036.9458186,0.0001165,2]
[323625668,1714143078533,-701.52,0.00011651,2]
[323625669,1714143078543,-500.0,0.00011651,2]
[323625670,1714143078552,-500.0,0.00011651,2]
[323625671,1714143078563,-500.0,0.00011665,2]
[323625672,1714143078572,-701.52,0.00011925,2]
[323625673,1714143078582,-500.0,0.00011925,2]
[323625674,1714143078593,-500.0,0.00011939,2]
[323625675,1714143078603,-500.0,0.00012199,2]
[323625676,1714143078612,-171.34799196,0.00012199,2]
[323625677,1714143083617,104840.39087095,8.501e-05,2]
[323625678,1714143085220,2831.32036828,8.501e-05,2]
[323625680,1714143590421,364.38,8.285e-05,2]
[323625767,1714143860303,151.30835371,0.00024986,120]
[323625773,1714144036107,400.0,0.0002375,90]
[323625774,1714144070375,346.16,8.219e-05,2]
[323625800,1714144232104,-539.45421001,9.15e-05,2]
[323625803,1714144232119,-155.0,9.151e-05,2]
[323625806,1714144232136,-2216.26019612,9.152e-05,2]
[323625808,1714144232151,-1500.0,9.865e-05,2]
[323625811,1714144232166,-901.48,9.888e-05,2]
[323625813,1714144232180,-150.0,9.899e-05,2]
[323625816,1714144232195,-9191.79,9.9e-05,2]
[323625817,1714144232209,-716.16,9.9e-05,2]
[323625818,1714144232224,-377.78,9.925e-05,2]
[323625819,1714144232238,-250.0,9.931e-05,2]
[323625820,1714144232252,-161.41,9.932e-05,2]
[323625821,1714144232266,-1794.53,0.00010029,2]
[323625822,1714144232280,-161.41,0.00010191,2]
[323625823,1714144232295,-161.41,0.0001045,2]
[323625824,1714144232310,-346.16,0.00010472,2]
[323625825,1714144232324,-181.9451404,0.00010484,2]
[323625826,1714144232338,-168.35,0.00010501,2]
[323625827,1714144232353,-168.35,0.00010508,2]
[323625828,1714144232367,-168.35,0.00010516,2]
[323625829,1714144232382,-240.0,0.00010523,2]
[323625830,1714144232396,-13.46045347,0.00010523,2]
[323625831,1714144232414,-154.88954653,0.00010523,2]
[323625832,1714144232428,-168.35,0.00010531,2]
[323625833,1714144232443,-325.21048947,0.00010537,2]
[323625834,1714144232460,-207.00951053,0.00010537,2]
[323625835,1714144232475,-168.35,0.00010538,2]
[323625836,1714144232489,-168.35,0.00010546,2]
[323625837,1714144232503,-106.81048947,0.00010553,2]
[323625838,1714144232536,-61.53951053,0.00010553,2]
[323625839,1714144232550,-210.0,0.00010888,2]
[323625840,1714144232565,-150.0,0.00010959,2]
[323625841,1714144232580,-150.99,0.00010962,2]
[323625844,1714144232601,-200.0,0.00011,2]
[323625846,1714144232615,-472.17154791,0.00011,2]
[323625849,1714144232632,-795.3189297,0.00011,2]
[323625851,1714144232646,-1221.88001186,0.00011,2]
[323625852,1714144232676,-28.11998814,0.00011,2]
[323625853,1714144232690,-2532.41485986,0.00011,3]
[323625854,1714144232723,-217.58514014,0.00011,3]
[323625855,1714144232738,-377.78,0.00011166,2]
[323625856,1714144232751,-968.38485985,0.00011283,2]
[323625857,1714144232771,-325.37646629,0.00011283,2]
[323625858,1714144232785,-8840.12659499,0.00011288,2]
[323625859,1714144232799,-583.56628036,0.00011432,2]
[323625860,1714144232815,-2500.0,0.00011449,2]
[323625861,1714144232829,-748.72465836,0.0001145,2]
[323625862,1714144232852,-1561.37794164,0.0001145,2]
[323625863,1714144232867,-210.036,0.0001145,2]
[323625864,1714144232886,-7132.9634,0.0001145,2]
[323625865,1714144232903,-1600.8141648,0.00011537,2]
[323625866,1714144232920,-277.19420564,0.00011539,2]
[323625867,1714144232931,-277.19420564,0.00011539,2]
[323625868,1714144232942,-277.19420564,0.00011539,2]
[323625869,1714144232951,-5658.46911264,0.00011547,2]
[323625870,1714144232985,-8228.44678843,0.00011547,2]
[323625871,1714144233268,-604.05449015,0.00011547,2]
[323625902,1714144238184,-500.0,0.00011546,2]
[323625904,1714144238194,-128400.00000003,0.00011547,2]
[323625913,1714144238289,-727.87480483,0.00011547,2]
[323625915,1714144238301,-1113.9737342,0.00011547,2]
[323625922,1714144238360,-6534.6,0.00011547,2]
[323625925,1714144238402,-26220.18107751,0.00011547,2]
[323625930,1714144238458,-508662.07573308,0.00011547,2]
[323625931,1714144238468,-155.0,0.00011547,2]
[323625932,1714144238477,-228.19643655,0.00011547,2]
[323625933,1714144238487,-302.0,0.00011547,2]
[323625934,1714144238496,-197.02451525,0.00011547,2]
[323625935,1714144238507,-466.53506152,0.00011547,2]
[323625936,1714144238516,-324.8206863,0.00011547,2]
[323625937,1714144238526,-10883.90590634,0.00011547,2]
[323625938,1714144238536,-249.76531101,0.00011547,2]
[323625939,1714144238546,-162.12456104,0.00011547,2]
[323625940,1714144238556,-354.33169906,0.00011547,2]
[323625941,1714144238565,-155.0,0.00011547,2]
[323625943,1714144238574,-3075.09,0.00011548,2]
[323625945,1714144238584,-1929.54,0.00011548,2]
[323625946,1714144238598,-2966.68,0.00011548,2]
[323625949,1714144238608,-500.0,0.00011548,2]
[323625950,1714144238617,-2021.25,0.00011548,2]
[323625953,1714144238628,-959.53,0.00011548,2]
[323625955,1714144238641,-500.0,0.00011548,2]
[323625956,1714144238651,-1581.39,0.00011548,2]
[323625958,1714144238661,-1999.67,0.00011548,2]
[323625960,1714144238671,-1479.0,0.00011548,2]
[323625962,1714144238681,-500.0,0.00011548,2]
[323625965,1714144238691,-500.0,0.00011548,2]
[323625967,1714144238701,-1335.86,0.00011548,2]
[323625968,1714144238711,-500.0,0.00011548,2]
[323625970,1714144238720,-500.0,0.00011548,2]
[323625972,1714144238729,-3036.88,0.00011548,2]
[323625974,1714144238739,-2181.33,0.00011548,2]
[323625976,1714144238749,-530.87,0.00011548,2]
[323625978,1714144238759,-756.35,0.00011548,2]
[323625980,1714144238768,-1511.47,0.00011548,2]
[323625981,1714144238777,-1781.76,0.00011548,2]
[323625983,1714144238787,-535.46,0.00011548,2]
[323625985,1714144238796,-929.19,0.00011548,2]
[323625987,1714144238805,-500.0,0.00011548,2]
[323625989,1714144238815,-2050.24,0.00011548,2]
[323625991,1714144238824,-1427.69,0.00011548,2]
[323625993,1714144238834,-1581.09,0.00011548,2]
[323625995,1714144238844,-500.0,0.00011548,2]
[323625996,1714144238854,-500.0,0.00011548,2]
[323625997,1714144238863,-8111.76,0.00011548,2]
[323625998,1714144238874,-881.08,0.00011548,2]
[323625999,1714144238886,-3242.05,0.00011548,2]
[323626000,1714144238894,-2025.69,0.00011548,2]
[323626001,1714144238904,-500.0,0.00011548,2]
[323626002,1714144238913,-4761.42,0.00011548,2]
[323626003,1714144238922,-759.13,0.00011548,2]
[323626004,1714144238931,-958.34,0.00011548,2]
[323626005,1714144238941,-1113.72,0.00011548,2]
[323626006,1714144238951,-2788.8,0.00011548,2]
[323626007,1714144238961,-1025.56,0.00011548,2]
[323626008,1714144238970,-500.0,0.00011548,2]
[323626009,1714144238980,-500.0,0.00011548,2]
[323626010,1714144238989,-500.0,0.00011548,2]
[323626011,1714144238999,-907.6,0.00011548,2]
[323626012,1714144239008,-1596.65,0.00011548,2]
[323626013,1714144239018,-592.32,0.00011548,2]
[323626014,1714144239027,-500.0,0.00011548,2]
[323626015,1714144239036,-1103.38,0.00011548,2]
[323626016,1714144239046,-501.21491854,0.00011548,2]
[323626017,1714144239057,-1620.05,0.00011548,2]
[323626018,1714144239067,-500.0,0.00011548,2]
[323626019,1714144239076,-500.0,0.00011548,2]
[323626020,1714144239086,-500.0,0.00011548,2]
[323626021,1714144239095,-500.0,0.00011548,2]
[323626022,1714144239104,-500.0,0.00011548,2]
[323626023,1714144239114,-900.65,0.00011548,2]
[323626024,1714144239124,-2592.79,0.00011548,2]
[323626025,1714144239136,-6571.64,0.00011548,2]
[323626026,1714144239146,-521.28,0.00011548,2]
[323626027,1714144239155,-582.1,0.00011548,2]
[323626028,1714144239164,-516.88,0.00011548,2]
[323626029,1714144239173,-154811.9682,0.0001155,2]
[323626030,1714144239184,-10000.0,0.00011565,2]
[323626031,1714144239194,-1025.03,0.00011565,2]
[323626032,1714144239205,-500.0,0.00011565,2]
[323626033,1714144239216,-500.0,0.00011565,2]
[323626034,1714144239227,-500.0,0.00011565,2]
[323626035,1714144239239,-500.0,0.00011565,2]
[323626036,1714144239250,-662.31,0.00011565,2]
[323626037,1714144239260,-500.0,0.00011565,2]
[323626038,1714144239271,-500.0,0.00011565,2]
[323626039,1714144239281,-500.0,0.00011565,2]
[323626040,1714144239292,-501.53841562,0.00011565,2]
[323626041,1714144239303,-500.0,0.00011565,2]
[323626042,1714144239315,-500.0,0.00011565,2]
[323626043,1714144239326,-500.0,0.00011565,2]
[323626044,1714144239338,-500.0,0.00011565,2]
[323626045,1714144239349,-500.0,0.00011565,2]
[323626046,1714144239360,-500.3060599,0.00011565,2]
[323626047,1714144239370,-1027.87,0.00011565,2]
[323626048,1714144239382,-504.65911173,0.00011565,2]
[323626049,1714144239392,-500.0,0.00011565,2]
[323626050,1714144239401,-500.0,0.00011565,2]
[323626051,1714144239410,-500.0,0.00011565,2]
[323626052,1714144239419,-537.7,0.00011565,2]
[323626053,1714144239429,-337.2,0.00011565,2]
[323626054,1714144239439,-1329.4,0.00011565,2]
[323626055,1714144239449,-500.0,0.00011565,2]
[323626056,1714144239459,-519.12507279,0.00011565,2]
[323626057,1714144239469,-197.35714236,0.00011565,2]
[323626058,1714144239482,-3382.19,0.00011565,2]
[323626059,1714144239492,-500.0,0.00011565,2]
[323626060,1714144239501,-575.5,0.00011565,2]
[323626061,1714144239511,-3841.15,0.00011565,2]
[323626062,1714144239521,-500.0,0.00011565,2]
[323626063,1714144239530,-271.07143735,0.00011565,2]
[323626064,1714144239540,-500.0,0.00011565,2]
[323626065,1714144239549,-500.0,0.00011565,2]
[323626066,1714144239560,-500.0,0.00011565,2]
[323626067,1714144239570,-500.0,0.00011565,2]
[323626068,1714144239581,-500.0,0.00011565,2]
[323626069,1714144239593,-500.0,0.00011565,2]
[323626070,1714144239604,-500.0,0.00011565,2]
[323626071,1714144239614,-500.0,0.00011565,2]
[323626072,1714144239625,-2727.56,0.00011565,2]
[323626073,1714144239637,-500.0,0.00011565,2]
[323626074,1714144239649,-500.0,0.00011565,2]
[323626075,1714144239659,-500.0,0.00011565,2]
[323626076,1714144239669,-500.0,0.00011565,2]
[323626077,1714144239679,-537.54,0.00011565,2]
[323626078,1714144239689,-500.0,0.00011565,2]
[323626079,1714144239699,-500.0,0.00011565,2]
[323626080,1714144239711,-505.1851313,0.00011565,2]
[323626081,1714144239720,-500.0,0.00011565,2]
[323626082,1714144239729,-500.0,0.00011565,2]
[323626083,1714144239739,-500.0,0.00011565,2]
[323626084,1714144239749,-500.0,0.00011565,2]
[323626085,1714144239761,-500.0,0.00011565,2]
[323626086,1714144239771,-500.0,0.00011565,2]
[323626087,1714144239781,-500.0,0.00011565,2]
[323626088,1714144239791,-500.0,0.00011565,2]
[323626089,1714144239802,-500.0,0.00011565,2]
[323626090,1714144239812,-500.0,0.00011565,2]
[323626091,1714144239822,-500.0,0.00011565,2]
[323626092,1714144239831,-500.0,0.00011565,2]
[323626093,1714144239840,-500.0,0.00011565,2]
[323626094,1714144239850,-500.0,0.00011565,2]
[323626095,1714144239861,-785.13,0.00011565,2]
[323626096,1714144239871,-218.86456303,0.00011565,2]
[323626097,1714144239881,-500.0,0.00011565,2]
[323626098,1714144239890,-500.0,0.00011565,2]
[323626099,1714144239900,-504.2611077,0.00011565,2]
[323626100,1714144239909,-558.17,0.00011565,2]
[323626101,1714144239919,-500.0,0.00011565,2]
[323626102,1714144239928,-1116.4,0.00011565,2]
[323626103,1714144239938,-500.0,0.00011565,2]
[323626104,1714144239947,-500.0,0.00011565,2]
[323626105,1714144239957,-500.0,0.00011565,2]
[323626106,1714144239966,-500.0,0.00011565,2]
[323626107,1714144239975,-500.0,0.00011565,2]
[323626108,1714144239985,-500.0,0.00011565,2]
[323626109,1714144239995,-500.0,0.00011565,2]
[323626110,1714144240005,-500.0,0.00011565,2]
[323626111,1714144240014,-500.0,0.00011565,2]
[323626112,1714144240024,-500.0,0.00011565,2]
[323626113,1714144240033,-579.13,0.00011565,2]
[323626114,1714144240043,-500.0,0.00011565,2]
[323626115,1714144240052,-500.0,0.00011565,2]
[323626116,1714144240061,-957.84,0.00011565,2]
[323626117,1714144240070,-577.46920651,0.00011565,2]
[323626118,1714144240079,-590.60271077,0.00011565,2]
[323626119,1714144240088,-500.0,0.00011565,2]
[323626120,1714144240098,-632.76126561,0.00011565,2]
[323626121,1714144240107,-500.0,0.00011565,2]
[323626122,1714144240116,-500.0,0.00011565,2]
[323626123,1714144240126,-500.0,0.00011565,2]
[323626124,1714144240138,-500.0,0.00011565,2]
[323626125,1714144240148,-500.0,0.00011565,2]
[323626126,1714144240157,-500.0,0.00011565,2]
[323626127,1714144240166,-664.1,0.00011565,2]
[323626128,1714144240175,-500.0,0.00011565,2]
[323626129,1714144240185,-498.27609352,0.00011565,2]
[323626130,1714144240194,-500.0,0.00011565,2]
[323626131,1714144240203,-500.0,0.00011565,2]
[323626132,1714144240212,-500.0,0.00011565,2]
[323626133,1714144240221,-500.0,0.00011565,2]
[323626134,1714144240231,-500.0,0.00011565,2]
[323626135,1714144240241,-500.0,0.00011565,2]
[323626136,1714144240250,-500.0,0.00011565,2]
[323626137,1714144240259,-500.0,0.00011565,2]
[323626138,1714144240269,-882.25,0.00011565,2]
[323626139,1714144240278,-500.0,0.00011565,2]
[323626140,1714144240287,-500.0,0.00011565,2]
[323626141,1714144240297,-500.0,0.00011565,2]
[323626142,1714144240306,-500.0,0.00011565,2]
[323626143,1714144240316,-764.06,0.00011565,2]
[323626144,1714144240326,-524.43,0.00011565,2]
[323626145,1714144240335,-500.0,0.00011565,2]
[323626146,1714144240344,-500.0,0.00011565,2]
[323626147,1714144240355,-500.0,0.00011565,2]
[323626148,1714144240366,-500.0,0.00011565,2]
[323626149,1714144240375,-150.0,0.00011565,2]
[323626150,1714144240388,-500.0,0.00011565,2]
[323626151,1714144240397,-150.0,0.00011565,2]
[323626152,1714144240407,-500.0,0.00011565,2]
[323626153,1714144240416,-500.0,0.00011565,2]
[323626154,1714144240426,-500.0,0.00011565,2]
[323626155,1714144240435,-758.65,0.00011565,2]
[323626156,1714144240445,-502.8355586,0.00011565,2]
[323626157,1714144240454,-500.0,0.00011565,2]
[323626158,1714144240464,-500.0,0.00011565,2]
[323626159,1714144240474,-500.0,0.00011565,2]
[323626160,1714144240484,-500.0,0.00011565,2]
[323626161,1714144240493,-502.82101681,0.00011565,2]
[323626162,1714144240502,-500.0,0.00011565,2]
[323626163,1714144240511,-500.0,0.00011565,2]
[323626164,1714144240521,-500.0,0.00011565,2]
[323626165,1714144240530,-500.0,0.00011565,2]
[323626166,1714144240539,-500.0,0.00011565,2]
[323626167,1714144240548,-500.0,0.00011565,2]
[323626168,1714144240557,-500.0,0.00011565,2]
[323626169,1714144240567,-500.0,0.00011565,2]
[323626170,1714144240576,-954.46,0.00011565,2]
[323626171,1714144240587,-500.0,0.00011565,2]
[323626172,1714144240597,-497.82488467,0.00011565,2]
[323626173,1714144240607,-500.0,0.00011565,2]
[323626174,1714144240616,-500.0,0.00011565,2]
[323626175,1714144240626,-680.81,0.00011565,2]
[323626176,1714144240637,-504.08046271,0.00011565,2]
[323626177,1714144240646,-500.0,0.00011565,2]
[323626178,1714144240655,-500.0,0.00011565,2]
[323626179,1714144240667,-500.0,0.00011565,2]
[323626180,1714144240676,-501.63488696,0.00011565,2]
[323626181,1714144240686,-500.0,0.00011565,2]
[323626183,1714144240695,-500.0,0.00011565,2]
[323626184,1714144240704,-500.0,0.00011565,2]
[323626186,1714144240714,-500.0,0.00011565,2]
[323626187,1714144240724,-500.0,0.00011565,2]
[323626188,1714144240734,-500.0,0.00011565,2]
[323626189,1714144240744,-500.0,0.00011565,2]
[323626190,1714144240754,-500.0,0.00011565,2]
[323626191,1714144240764,-502.8215391,0.00011565,2]
[323626192,1714144240774,-500.0,0.00011565,2]
[323626193,1714144240784,-500.0,0.00011565,2]
[323626194,1714144240794,-500.0,0.00011565,2]
[323626195,1714144240804,-500.0,0.00011565,2]
[323626196,1714144240813,-502.57199475,0.00011565,2]
[323626197,1714144240823,-500.0,0.00011565,2]
[323626198,1714144240832,-500.0,0.00011565,2]
[323626199,1714144240843,-500.0,0.00011565,2]
[323626200,1714144240853,-501.81947576,0.00011565,2]
[323626201,1714144240863,-500.0,0.00011565,2]
[323626202,1714144240874,-500.0,0.00011565,2]
[323626203,1714144240887,-500.0,0.00011565,2]
[323626204,1714144240898,-500.0,0.00011565,2]
[323626205,1714144240908,-500.0,0.00011565,2]
[323626206,1714144240917,-500.0,0.00011565,2]
[323626207,1714144240927,-739.45,0.00011565,2]
[323626208,1714144240938,-500.0,0.00011565,2]
[323626209,1714144240948,-503.80555505,0.00011565,2]
[323626210,1714144240957,-500.0,0.00011565,2]
[323626211,1714144240968,-500.0,0.00011565,2]
[323626212,1714144240977,-500.0,0.00011565,2]
[323626213,1714144240988,-500.0,0.00011565,2]
[323626214,1714144240998,-500.0,0.00011565,2]
[323626215,1714144241008,-500.0,0.00011565,2]
[323626216,1714144241018,-529.62,0.00011565,2]
[323626217,1714144241029,-500.0,0.00011565,2]
[323626218,1714144241039,-500.0,0.00011565,2]
[323626219,1714144241049,-500.0,0.00011565,2]
[323626220,1714144241059,-500.0,0.00011565,2]
[323626221,1714144241069,-500.0,0.00011565,2]
[323626222,1714144241080,-597.21,0.00011565,2]
[323626223,1714144241090,-1069.36,0.00011565,2]
[323626224,1714144241099,-501.16608267,0.00011565,2]
[323626225,1714144241108,-500.0,0.00011565,2]
[323626226,1714144241118,-500.0,0.00011565,2]
[323626227,1714144241127,-500.0,0.00011565,2]
[323626228,1714144241140,-500.0,0.00011565,2]
[323626229,1714144241149,-500.94635741,0.00011565,2]
[323626230,1714144241158,-500.0,0.00011565,2]
[323626231,1714144241168,-502.64603092,0.00011565,2]